bitfinex-derivatives/quotes_BTCF0:USTF0_20251030
["timestamp","ask_amount","ask_price","bid_price","bid_amount"]
[1761837437330,0.01985475,107940.0,107930.0,2.46040068]
[1761837438540,0.01985475,107940.0,107930.0,2.55305818]
[1761837438736,0.01345,107960.0,107940.0,0.0926476]
[1761837438940,0.37388,107980.0,107950.0,1.0168043]
[1761837439137,0.01308,107980.0,107970.0,0.2412446]
[1761837439443,0.41797,107990.0,107970.0,0.5635646]
[1761837439634,0.03414,107980.0,107970.0,0.68312]
[1761837439837,0.05717,107980.0,107970.0,0.68312]
[1761837440437,0.05817,107980.0,107970.0,0.68312]
[1761837441043,0.001,107980.0,107970.0,0.68312]
[1761837441442,0.001,107980.0,107970.0,0.69214901]
[1761837441630,0.004,107980.0,107970.0,0.93339361]
[1761837442336,0.004,107980.0,107970.0,0.93615361]
[1761837442538,0.02659,107980.0,107970.0,0.69214901]
[1761837443042,0.04888,107980.0,107970.0,0.33134901]
[1761837443250,0.07188,107980.0,107970.0,0.33134901]
[1761837443548,0.04888,107980.0,107970.0,0.33158901]
[1761837443845,0.04988,107980.0,107970.0,0.33158901]
[1761837444038,0.04788,107980.0,107970.0,0.33158901]
[1761837444238,0.04788,107980.0,107960.0,0.3608]
[1761837444239,0.04588,107970.0,107960.0,0.3608]
[1761837444438,0.04588,107970.0,107960.0,0.68332]
[1761837444846,0.2432446,107980.0,107950.0,0.3608]
[1761837444847,0.01388,107960.0,107950.0,0.3608]
[1761837445044,0.05976,107960.0,107950.0,0.36999679]
[1761837445238,0.01388,107960.0,107950.0,0.69247679]
[1761837445642,0.05976,107960.0,107950.0,0.69247679]
[1761837446536,0.05976,107960.0,107950.0,0.36999679]
[1761837446740,0.05976,107960.0,107950.0,0.69255679]
[1761837446942,0.07976,107960.0,107950.0,0.69355679]
[1761837447350,0.07976,107960.0,107950.0,0.69555679]
[1761837448143,0.07976,107960.0,107950.0,0.01119679]
[1761837448448,0.07976,107960.0,107950.0,0.33411679]
[1761837448655,0.05976,107960.0,107950.0,0.33411679]
[1761837448845,0.07976,107960.0,107950.0,0.32492]
[1761837449149,0.05976,107960.0,107950.0,0.32492]
[1761837449346,0.44056,107960.0,107950.0,0.32492]
[1761837449952,0.44056,107960.0,107950.0,0.002]
[1761837450153,0.05976,107960.0,107950.0,0.32488]
[1761837450551,0.07976,107960.0,107950.0,0.32488]
[1761837450750,0.23976,107960.0,107950.0,0.32488]
[1761837451163,0.60056,107960.0,107950.0,0.32388]
[1761837451452,0.07976,107960.0,107950.0,0.32388]
[1761837451645,0.44056,107960.0,107950.0,0.001]
[1761837451841,0.44056,107960.0,107950.0,0.3238]
[1761837452062,0.42056,107960.0,107950.0,0.3238]
[1761837452259,0.44056,107960.0,107950.0,0.3238]
[1761837452557,0.39727,107960.0,107950.0,0.3238]
[1761837452745,0.03647,107960.0,107950.0,0.6846]
[1761837452949,0.05976,107960.0,107950.0,0.6846]
[1761837453453,0.05976,107960.0,107950.0,0.3618]
[1761837453657,0.05976,107960.0,107950.0,0.68468]
[1761837453856,0.03647,107970.0,107950.0,0.68468]
[1761837454052,0.01388,107970.0,107960.0,0.4534317]
[1761837454351,0.01388,107980.0,107960.0,0.85819917]
[1761837454557,0.05976,107980.0,107970.0,0.68372]
[1761837454953,0.05976,107970.0,107960.0,0.3608]
[1761837455166,0.07976,107970.0,107960.0,0.68376]
[1761837455357,0.05976,107970.0,107960.0,0.3608]
[1761837455552,0.05976,107970.0,107960.0,0.68376]
[1761837455747,0.06076,107970.0,107960.0,0.3608]
[1761837455944,0.08076,107970.0,107960.0,0.68376]
[1761837456345,0.06076,107970.0,107960.0,0.6838]
[1761837456562,0.08076,107970.0,107960.0,0.6838]
[1761837456858,0.08076,107970.0,107960.0,0.3608]
[1761837457068,0.08076,107970.0,107960.0,0.68376]
[1761837457450,0.06076,107970.0,107960.0,0.3608]
[1761837457655,0.08076,107970.0,107960.0,0.68376]
[1761837457850,0.06176,107970.0,107960.0,0.68376]
[1761837458057,0.08176,107970.0,107960.0,0.68376]
[1761837458361,0.06176,107970.0,107960.0,0.68376]
[1761837459169,0.06176,107970.0,107960.0,0.3608]
[1761837459356,0.06176,107970.0,107960.0,0.68368]
[1761837459557,0.08176,107970.0,107960.0,0.3608]
[1761837459758,0.06176,107970.0,107960.0,0.68364]
[1761837460057,0.08176,107970.0,107950.0,0.3608]
[1761837460360,0.05976,107960.0,107940.0,0.77494251]
[1761837460564,0.05976,107960.0,107950.0,0.68364]
[1761837461666,0.03647,107960.0,107950.0,0.3608]
[1761837461848,0.03647,107960.0,107950.0,0.6836]
[1761837462255,0.01388,107960.0,107950.0,0.6836]
[1761837462556,0.06076,107970.0,107950.0,0.6836]
[1761837462758,0.06076,107970.0,107960.0,0.3608]
[1761837462951,0.07976,107970.0,107960.0,0.3608]
[1761837463156,0.05976,107970.0,107960.0,0.3608]
[1761837464064,0.06076,107970.0,107960.0,0.3608]
[1761837466064,0.06176,107970.0,107960.0,0.3608]
[1761837466265,0.08176,107970.0,107960.0,0.3608]
[1761837466468,0.06176,107970.0,107960.0,0.3608]
[1761837467663,0.06176,107970.0,107950.0,0.6836]
[1761837467870,0.01388,107960.0,107950.0,0.6836]
[1761837468262,0.01388,107960.0,107950.0,0.3608]
[1761837468565,0.01388,107960.0,107950.0,0.68332]
[1761837468965,0.03647,107960.0,107950.0,0.68332]
[1761837469162,0.01388,107960.0,107950.0,0.68332]
[1761837469368,0.05976,107970.0,107950.0,0.87746824]
[1761837469759,0.05976,107970.0,107960.0,0.3608]
[1761837469954,0.01388,107960.0,107950.0,0.87746824]
[1761837470164,0.01388,107960.0,107950.0,0.87646824]
[1761837470370,0.01388,107960.0,107950.0,0.87746824]
[1761837470866,0.05976,107960.0,107950.0,0.87746824]
[1761837471066,0.05976,107960.0,107950.0,0.001]
[1761837471067,0.63370824,107960.0,107950.0,0.001]
[1761837471265,0.63370824,107960.0,107950.0,0.3234]
[1761837471863,0.61370824,107960.0,107950.0,0.3234]
[1761837472171,0.66370824,107960.0,107950.0,0.3234]
[1761837473171,0.44056,107960.0,107950.0,0.3234]
[1761837473472,0.01388,107960.0,107950.0,0.6842]
[1761837474069,0.05719,107960.0,107950.0,0.6842]
[1761837477378,0.07719,107960.0,107950.0,0.6842]
[1761837477571,0.07719,107960.0,107950.0,0.3618]
[1761837477875,0.07719,107960.0,107950.0,0.68436]
[1761837478075,0.43799,107960.0,107950.0,0.001]
[1761837478270,0.07719,107960.0,107950.0,0.32352]
[1761837478471,0.43799,107960.0,107950.0,0.32352]
[1761837478870,0.62799,107960.0,107950.0,0.32352]
[1761837479067,0.62799,107960.0,107950.0,0.32348]
[1761837479264,1.03269957,107960.0,107950.0,0.001]
[1761837479467,1.03269957,107960.0,107950.0,0.32348]
[1761837479881,1.03269957,107960.0,107950.0,0.001]
[1761837479882,0.62799,107960.0,107950.0,0.001]
[1761837480173,0.62799,107960.0,107950.0,0.32348]
[1761837480770,0.62799,107960.0,107950.0,0.001]
[1761837481171,1.05546412,107960.0,107950.0,0.001]
[1761837482375,0.05665,107940.0,107930.0,0.44813109]
[1761837482581,0.05665,107940.0,107930.0,0.77057109]
[1761837482774,0.07665,107940.0,107930.0,0.77057109]
[1761837483369,0.05665,107940.0,107930.0,0.77057109]
[1761837483567,0.07665,107940.0,107930.0,0.40977109]
[1761837483780,0.07665,107940.0,107930.0,0.34364592]
[1761837483975,0.07665,107940.0,107930.0,0.02120592]
[1761837483976,1.36135957,107940.0,107930.0,0.02120592]
[1761837484275,0.76135957,107940.0,107930.0,0.34360592]
[1761837484584,0.10665,107940.0,107930.0,0.34360592]
[1761837484767,0.10665,107940.0,107930.0,0.34560592]
[1761837484967,0.05665,107940.0,107930.0,0.34560592]
[1761837485375,0.07665,107940.0,107930.0,0.34560592]
[1761837485578,0.01334,107940.0,107930.0,0.70640592]
[1761837485874,0.07665,107940.0,107930.0,0.70640592]
[1761837486481,0.07665,107940.0,107930.0,0.70440592]
[1761837486683,0.05665,107940.0,107930.0,0.70440592]
[1761837486882,0.07665,107940.0,107930.0,0.70440592]
[1761837487276,0.05665,107940.0,107930.0,0.70440592]
[1761837487477,0.07665,107940.0,107930.0,0.70440592]
[1761837488279,0.07665,107940.0,107930.0,0.02120592]
[1761837488782,0.07665,107940.0,107930.0,0.38200592]
[1761837490883,0.48135957,107940.0,107930.0,0.02120592]
[1761837491086,0.48135957,107940.0,107930.0,0.34372592]
[1761837491377,0.48135957,107940.0,107910.0,0.51959327]
[1761837491378,0.05025,107890.0,107880.0,0.24346357]
[1761837491580,0.85671724,107890.0,107880.0,0.05903695]
[1761837491769,0.82671724,107890.0,107880.0,0.39495695]
[1761837491973,0.46591724,107890.0,107880.0,0.38152]
[1761837492181,0.03426767,107890.0,107880.0,0.38152]
[1761837492389,0.01243891,107890.0,107880.0,0.38152]
[1761837492774,8.124e-05,107890.0,107880.0,0.38152]
[1761837493680,0.02008124,107890.0,107880.0,0.38152]
[1761837493876,0.02148124,107890.0,107880.0,0.38152]
[1761837494078,0.06339124,107890.0,107880.0,0.05824]
[1761837494277,0.04339124,107890.0,107880.0,0.38152]
[1761837494481,8.124e-05,107890.0,107880.0,0.74232]
[1761837494883,0.02148124,107890.0,107880.0,0.74232]
[1761837495083,0.02291124,107890.0,107880.0,0.74232]
[1761837495386,0.75059081,107890.0,107880.0,0.34601]
[1761837495684,0.45059081,107890.0,107880.0,0.36741]
[1761837495883,0.96139081,107890.0,107880.0,0.36741]
[1761837496082,1.10139081,107890.0,107880.0,0.36741]
[1761837496289,1.10139081,107890.0,107880.0,0.36765]
[1761837496589,0.83139081,107890.0,107880.0,0.36765]
[1761837496989,0.83139081,107890.0,107880.0,0.36515]
[1761837497190,0.0458,107880.0,107870.0,0.72716]
[1761837497395,0.02283,107880.0,107870.0,0.72716]
[1761837497581,0.0458,107880.0,107870.0,0.72712]
[1761837498186,0.40668124,107890.0,107880.0,0.05622]
[1761837498391,0.04588124,107890.0,107880.0,0.05622]
[1761837498784,0.06588124,107890.0,107880.0,0.05622]
[1761837498976,8.124e-05,107890.0,107880.0,0.05622]
[1761837499376,0.04588124,107890.0,107880.0,0.05622]
[1761837499582,0.04588124,107890.0,107880.0,0.41702]
[1761837499777,0.02291124,107890.0,107880.0,0.41702]
[1761837499982,8.124e-05,107890.0,107880.0,0.41702]
[1761837500690,0.02291124,107890.0,107880.0,0.05622]
[1761837500894,0.04688124,107890.0,107880.0,0.3799]
[1761837501091,0.04788124,107890.0,107880.0,0.3799]
[1761837501289,0.00208124,107890.0,107880.0,0.7407]
[1761837502093,0.00208124,107890.0,107880.0,0.8333993]
[1761837502292,0.00208124,107890.0,107880.0,0.7407]
[1761837503298,0.00208124,107890.0,107880.0,0.74062]
[1761837503682,0.00208124,107890.0,107880.0,0.41702]
[1761837503887,0.00208124,107890.0,107880.0,0.74058]
[1761837505900,0.02409124,107890.0,107880.0,0.41702]
[1761837506197,0.16590124,107890.0,107880.0,0.41702]
[1761837506494,0.46347081,107890.0,107880.0,0.7405]
[1761837507292,0.94427081,107890.0,107880.0,0.3797]
[1761837507798,0.04590124,107890.0,107880.0,0.3797]
[1761837508000,0.00208124,107890.0,107880.0,0.7405]
[1761837508497,0.00208124,107890.0,107880.0,0.8331991]
[1761837508693,0.00208124,107890.0,107880.0,1.83790867]
[1761837508899,0.00208124,107890.0,107880.0,1.3405]
[1761837509396,0.00208124,107890.0,107880.0,0.66154214]
[1761837509598,0.00208124,107890.0,107880.0,0.7405]
[1761837510187,0.04601124,107890.0,107880.0,0.41702]
[1761837510387,0.04601124,107890.0,107880.0,0.7405]
[1761837511104,0.00208124,107890.0,107880.0,0.7405]
[1761837511308,0.00208124,107890.0,107880.0,0.41702]
[1761837511497,0.00208124,107890.0,107880.0,0.74038]
[1761837511694,0.28665338,107890.0,107880.0,0.05622]
[1761837511899,0.97745338,107890.0,107880.0,0.34532]
[1761837512107,0.66745338,107890.0,107880.0,0.36753]
[1761837512399,0.3608,107910.0,107900.0,0.02271]
[1761837512599,0.40365,107920.0,107910.0,0.04492]
[1761837512799,0.66911812,107920.0,107910.0,0.04492]
[1761837513401,0.42739598,107920.0,107910.0,0.04492]
[1761837513706,0.66911812,107920.0,107910.0,0.04492]
[1761837513897,0.42839598,107920.0,107910.0,0.05492]
[1761837514301,0.67011812,107920.0,107910.0,0.05492]
[1761837514498,0.31231812,107920.0,107910.0,0.06492]
[1761837514697,0.31231812,107920.0,107910.0,0.02]
[1761837514903,0.56231812,107920.0,107910.0,0.06492]
[1761837515109,0.56507812,107920.0,107910.0,0.3888]
[1761837515406,0.92587812,107920.0,107910.0,0.36659]
[1761837515593,1.16760026,107920.0,107910.0,0.02]
[1761837515798,1.16760026,107920.0,107910.0,8.106e-05]
[1761837516000,0.021,107910.0,107900.0,0.32384]
[1761837516202,0.94817214,107910.0,107900.0,0.32384]
[1761837516394,0.04285,107890.0,107880.0,0.38351]
[1761837516600,0.04285,107890.0,107880.0,0.72972]
[1761837517314,0.04285,107890.0,107880.0,0.72964]
[1761837518100,0.04285,107890.0,107880.0,0.40572]
[1761837518299,0.04285,107890.0,107880.0,0.7296]
[1761837518610,0.04906,107880.0,107870.0,0.40572]
[1761837518912,0.28457214,107880.0,107870.0,0.40572]
[1761837519107,0.33457214,107880.0,107870.0,0.40572]
[1761837519307,0.28457214,107880.0,107870.0,0.04492]
[1761837519507,0.91188214,107880.0,107860.0,0.01264]
[1761837519706,0.64537214,107870.0,107860.0,0.36896]
[1761837519912,0.04285,107860.0,107850.0,0.05756]
[1761837520113,0.04285,107860.0,107840.0,0.3608]
[1761837520114,0.04285,107850.0,107840.0,0.3608]
[1761837520301,0.04285,107850.0,107840.0,0.34679]
[1761837520302,0.30457214,107850.0,107840.0,0.34679]
[1761837520611,0.28457214,107850.0,107840.0,0.38272]
[1761837520911,0.021,107850.0,107840.0,0.74352]
[1761837521109,0.04484871,107850.0,107840.0,0.74352]
[1761837521411,0.06669871,107850.0,107840.0,0.74352]
[1761837521708,0.04484871,107850.0,107840.0,0.74452]
[1761837522010,0.08669871,107850.0,107840.0,0.74452]
[1761837522402,0.09569871,107850.0,107840.0,0.74552]
[1761837522706,0.09569871,107850.0,107840.0,0.371]
[1761837522707,0.69822085,107850.0,107840.0,0.371]
[1761837523202,0.70757613,107850.0,107840.0,0.371]
[1761837523608,0.69822085,107850.0,107840.0,0.38472]
[1761837523913,0.67822085,107850.0,107840.0,0.371]
[1761837524210,0.45849871,107850.0,107840.0,0.38372]
[1761837524512,0.70022085,107850.0,107840.0,0.38372]
[1761837524706,0.69122085,107850.0,107840.0,0.38272]
[1761837524904,0.70022085,107850.0,107840.0,0.38372]
[1761837525104,0.67637214,107850.0,107840.0,0.38372]
[1761837525304,0.70008129,107850.0,107840.0,0.05964]
[1761837526111,0.68008129,107850.0,107840.0,0.05964]
[1761837526416,0.70008129,107850.0,107840.0,0.05964]
[1761837526604,0.45835915,107850.0,107840.0,0.05964]
[1761837526806,0.70008129,107850.0,107840.0,0.001]
[1761837527122,0.98008129,107850.0,107840.0,0.001]
[1761837527418,0.98288129,107850.0,107840.0,0.001]
[1761837527599,0.05603,107840.0,107830.0,9.638e-05]
[1761837527803,0.05603,107840.0,107830.0,0.05840666]
[1761837527804,0.41460303,107840.0,107830.0,0.05840666]
[1761837528210,0.05380303,107840.0,107830.0,0.04501638]
[1761837528613,0.03380303,107840.0,107830.0,0.04501638]
[1761837528920,0.82669214,107840.0,107830.0,0.00109638]
[1761837529108,0.65669214,107840.0,107830.0,0.01447148]
[1761837529308,0.70669214,107840.0,107830.0,0.01447148]
[1761837529505,0.99669214,107840.0,107830.0,0.01447148]
[1761837529812,0.67669214,107840.0,107830.0,0.04601638]
[1761837530118,0.31589214,107840.0,107830.0,0.04601638]
[1761837530418,0.04285,107840.0,107830.0,0.04601638]
[1761837530620,0.64537214,107850.0,107840.0,0.05864]
[1761837530920,0.66537214,107850.0,107840.0,0.38284]
[1761837531309,0.40365,107850.0,107840.0,0.38284]
[1761837531505,0.66537214,107850.0,107840.0,0.38284]
[1761837531707,0.66537214,107850.0,107830.0,0.38365638]
[1761837531708,0.05562,107840.0,107830.0,0.38365638]
[1761837531908,0.65814214,107840.0,107830.0,0.32437638]
[1761837532108,0.74642,107840.0,107830.0,0.33776239]
[1761837532314,0.98814214,107840.0,107830.0,0.33776239]
[1761837532714,0.98814214,107840.0,107830.0,0.32437638]
[1761837533518,0.79814214,107840.0,107830.0,0.32437638]
[1761837534018,0.80314214,107840.0,107830.0,0.32537638]
[1761837534222,0.66314214,107840.0,107830.0,0.32537638]
[1761837534518,0.96314214,107840.0,107830.0,0.32537638]
[1761837535317,0.96314214,107840.0,107830.0,0.34713638]
[1761837535515,0.80314214,107840.0,107830.0,0.34713638]
[1761837535923,0.68314214,107840.0,107830.0,0.36878638]
[1761837536423,0.66314214,107840.0,107830.0,0.36878638]
[1761837536624,1.14486428,107840.0,107830.0,0.32521638]
[1761837536923,1.14766428,107840.0,107830.0,0.32521638]
[1761837537312,1.14766428,107840.0,107830.0,0.00109638]
[1761837537717,1.14486428,107840.0,107830.0,0.00109638]
[1761837538020,0.90314214,107840.0,107830.0,0.00109638]
[1761837539624,1.50314214,107840.0,107830.0,0.34693638]
[1761837539816,0.65182214,107840.0,107830.0,0.36874638]
[1761837540224,0.005,107840.0,107830.0,0.36874638]
[1761837540820,0.005,107840.0,107830.0,0.72954638]
[1761837541125,0.3608,107860.0,107850.0,0.04357]
[1761837541327,0.3608,107870.0,107860.0,0.05683]
[1761837541527,0.38449182,107870.0,107860.0,0.06590945]
[1761837542025,0.3608,107890.0,107880.0,0.05683]
[1761837542225,0.02347378,107890.0,107880.0,0.74219]
[1761837543225,0.3608,107900.0,107890.0,0.04357]
[1761837543527,0.6258195,107900.0,107890.0,0.04357]
[1761837543725,0.02329736,107900.0,107890.0,0.04357]
[1761837544224,0.02329736,107900.0,107890.0,0.40437]
[1761837544624,0.02829736,107900.0,107890.0,0.40537]
[1761837545631,0.2914095,107900.0,107890.0,0.40537]
[1761837545816,0.3343195,107900.0,107890.0,0.36901]
[1761837546021,0.6971195,107900.0,107890.0,0.36901]
[1761837546221,0.6971195,107900.0,107890.0,0.04457]
[1761837546423,0.6971195,107900.0,107890.0,0.36901]
[1761837546623,0.6771195,107900.0,107890.0,0.36901]
[1761837547138,0.3363195,107900.0,107890.0,0.36901]
[1761837547631,0.3363195,107900.0,107890.0,0.36897]
[1761837547929,0.6771195,107900.0,107890.0,0.36889]
[1761837548233,0.6971195,107900.0,107890.0,0.36889]
[1761837548730,0.71799414,107900.0,107890.0,0.001]
[1761837548923,0.73799414,107900.0,107890.0,0.001]
[1761837549126,1.00799414,107900.0,107890.0,0.32524]
[1761837549324,1.00519414,107900.0,107890.0,0.32524]
[1761837549830,1.00519414,107900.0,107890.0,0.001]
[1761837549831,1.04118699,107900.0,107890.0,0.001]
[1761837550339,1.63838699,107900.0,107890.0,0.32532]
[1761837550929,1.03838699,107900.0,107890.0,0.32532]
[1761837551130,1.00519414,107900.0,107890.0,0.32528]
[1761837551328,1.01799414,107900.0,107860.0,0.37406]
[1761837551536,0.28602214,107870.0,107860.0,0.41763]
[1761837551839,0.30602214,107870.0,107860.0,0.74187]
[1761837552039,0.3608,107880.0,107860.0,0.74187]
[1761837552337,0.02324911,107880.0,107870.0,0.04357]
[1761837552534,0.62391214,107890.0,107880.0,0.04357]
[1761837552732,0.67007214,107890.0,107880.0,0.32424]
[1761837552934,1.01007214,107890.0,107880.0,0.32424]
[1761837553129,1.01007214,107890.0,107860.0,0.37506]
[1761837553130,0.67007214,107890.0,107860.0,0.37506]
[1761837553330,0.64682214,107880.0,107870.0,0.36777]
[1761837553533,0.30927214,107880.0,107870.0,0.36777]
[1761837553741,0.26497214,107880.0,107870.0,0.36773]
[1761837553934,0.02325,107880.0,107870.0,0.36773]
[1761837554441,0.02325,107880.0,107870.0,0.73133]
[1761837554754,0.24572214,107890.0,107880.0,0.05683]
[1761837554934,0.66979443,107890.0,107880.0,0.05683]
[1761837555631,0.66979443,107890.0,107880.0,0.38103]
[1761837555830,0.68979443,107890.0,107880.0,0.38103]
[1761837556225,0.68979443,107890.0,107880.0,0.02176]
[1761837556427,0.71979443,107890.0,107880.0,0.34588]
[1761837556639,0.97379443,107890.0,107880.0,0.32512]
[1761837556840,0.97379443,107890.0,107880.0,0.001]
[1761837557341,0.97379443,107890.0,107880.0,0.32512]
[1761837557529,0.97479443,107890.0,107880.0,0.32512]
[1761837557927,0.67479443,107890.0,107880.0,0.38195]
[1761837558931,0.02797229,107890.0,107880.0,0.38195]
[1761837559131,0.02797229,107890.0,107880.0,0.38475]
[1761837559332,0.02797229,107890.0,107880.0,0.4774491]
[1761837559540,0.005,107890.0,107880.0,0.8354491]
[1761837559938,0.005,107890.0,107880.0,0.8382491]
[1761837560244,0.005,107890.0,107880.0,0.8354491]
[1761837560637,0.005,107890.0,107880.0,0.74275]
[1761837560940,0.005,107890.0,107880.0,0.41863]
[1761837561136,0.24672214,107890.0,107880.0,0.41863]
[1761837561342,0.24672214,107890.0,107880.0,0.74271]
[1761837561647,0.2695769,107890.0,107880.0,0.74271]
[1761837562343,0.24672214,107890.0,107880.0,0.74271]
[1761837562537,0.24672214,107890.0,107880.0,0.74267]
[1761837562738,0.005,107890.0,107880.0,0.74267]
[1761837565143,0.005,107890.0,107880.0,0.74547]
[1761837565347,0.005,107890.0,107880.0,0.74267]
[1761837567940,0.005,107890.0,107880.0,0.41863]
[1761837568143,0.29230214,107890.0,107880.0,0.41863]
[1761837568446,0.67310214,107890.0,107880.0,0.38163]
[1761837569340,0.83676512,107890.0,107880.0,0.38163]
[1761837569545,0.83676512,107890.0,107880.0,0.36841]
[1761837570049,1.12676512,107890.0,107880.0,0.001]
[1761837570248,1.72676512,107890.0,107880.0,0.001]
[1761837570551,1.72676512,107890.0,107880.0,0.3248]
[1761837571539,1.72676512,107890.0,107880.0,0.001]
[1761837571747,1.72676512,107890.0,107880.0,0.3248]
[1761837572051,1.72676512,107890.0,107880.0,0.001]
[1761837572244,1.72676512,107890.0,107880.0,0.34647]
[1761837572449,0.66138,107890.0,107880.0,0.38292]
[1761837572652,1.06676512,107890.0,107880.0,0.38292]
[1761837573849,1.06676512,107890.0,107880.0,0.36892]
[1761837574147,1.06676512,107890.0,107880.0,0.3248]
[1761837574847,1.06676512,107890.0,107880.0,0.36892]
[1761837575349,0.81676512,107890.0,107880.0,0.36892]
[1761837575551,1.08676512,107890.0,107880.0,0.38292]
[1761837575953,1.08676512,107890.0,107880.0,0.3248]
[1761837576551,1.08676512,107890.0,107880.0,0.001]
[1761837576846,1.08676512,107890.0,107880.0,0.3246]
[1761837577352,0.83676512,107890.0,107880.0,0.38272]
[1761837578456,1.10676512,107890.0,107880.0,0.38272]
[1761837578751,1.10676512,107890.0,107880.0,0.36872]
[1761837579146,1.10676512,107890.0,107880.0,0.3246]
[1761837579658,1.10676512,107890.0,107880.0,0.36872]
[1761837579659,0.83676512,107890.0,107880.0,0.36872]
[1761837579854,0.83676512,107890.0,107880.0,0.38272]
[1761837580349,0.83676512,107890.0,107880.0,0.36872]
[1761837580555,1.00676512,107890.0,107880.0,0.36864]
[1761837580854,1.00676512,107890.0,107880.0,0.32452]
[1761837581053,1.00676512,107890.0,107880.0,0.34619]
[1761837581255,1.00676512,107890.0,107880.0,0.02267]
[1761837581446,1.00676512,107890.0,107880.0,0.34615]
[1761837581645,1.00676512,107890.0,107880.0,0.3686]
[1761837582152,1.00676512,107890.0,107880.0,0.3826]
[1761837582356,0.83676512,107890.0,107880.0,0.3826]
[1761837585350,1.13676512,107890.0,107880.0,0.3686]
[1761837585748,0.97676512,107890.0,107880.0,0.3686]
[1761837586748,0.83676512,107890.0,107880.0,0.3686]
[1761837586948,0.81676512,107890.0,107880.0,0.3826]
[1761837587144,1.08676512,107890.0,107880.0,0.3686]
[1761837587556,1.08676512,107890.0,107880.0,0.36848]
[1761837588662,0.04558,107870.0,107860.0,0.04412]
[1761837588862,0.60096512,107870.0,107860.0,0.04412]
[1761837589161,1.14176512,107870.0,107860.0,0.38105764]
[1761837589351,1.14176512,107870.0,107860.0,0.38121764]
[1761837589552,0.83176512,107870.0,107860.0,0.38121764]
[1761837589959,0.83176512,107870.0,107860.0,0.38221764]
[1761837590958,1.10176512,107870.0,107860.0,0.38221764]
[1761837591266,1.10176512,107870.0,107860.0,0.33805764]
[1761837591458,1.00176512,107870.0,107860.0,0.38429764]
[1761837591866,1.00276512,107870.0,107860.0,0.36200764]
[1761837592061,1.00276512,107870.0,107860.0,0.38529764]
[1761837592261,0.81376512,107870.0,107860.0,0.39760764]
[1761837592565,1.12576512,107870.0,107860.0,0.39760764]
[1761837594265,0.83576512,107870.0,107860.0,0.39760764]
[1761837594467,0.004,107870.0,107860.0,0.39760764]
[1761837595170,0.004,107870.0,107860.0,0.75840764]
[1761837596066,0.004,107870.0,107860.0,0.82455923]
[1761837596365,0.0475,107870.0,107860.0,0.39748764]
[1761837596569,0.004,107870.0,107860.0,0.39748764]
[1761837597070,0.004,107870.0,107860.0,0.75828764]
[1761837597367,0.004,107870.0,107860.0,0.82443923]
[1761837597565,0.0475,107870.0,107860.0,0.50127923]
[1761837597771,0.0675,107870.0,107860.0,0.39740764]
[1761837598163,0.0675,107870.0,107860.0,0.38367]
[1761837598364,0.0475,107870.0,107860.0,0.38367]
[1761837598867,0.45288512,107870.0,107860.0,0.38367]
[1761837599172,0.47288512,107870.0,107860.0,0.38367]
[1761837599360,0.0475,107870.0,107860.0,0.38367]
[1761837599761,0.0475,107870.0,107860.0,0.74447]
[1761837600357,0.02587,107870.0,107860.0,0.38367]
[1761837600561,0.004,107870.0,107860.0,0.74447]
[1761837600968,0.004,107870.0,107860.0,0.38367]
[1761837601166,0.0475,107870.0,107860.0,0.38367]
[1761837601471,1.09368512,107870.0,107860.0,0.001]
[1761837601667,1.09368512,107870.0,107840.0,0.44021159]
[1761837601668,0.0435,107850.0,107840.0,0.04624]
[1761837601965,0.0435,107840.0,107830.0,0.47328797]
[1761837602178,0.48206512,107840.0,107830.0,0.06624797]
[1761837602466,1.16212209,107840.0,107830.0,0.32325638]
[1761837603561,1.16312209,107840.0,107830.0,0.32425638]
[1761837603973,1.16312209,107840.0,107830.0,0.00109638]
[1761837604162,1.15386512,107840.0,107830.0,0.00109638]
[1761837604472,0.4253,107840.0,107830.0,0.04693638]
[1761837605062,0.0645,107840.0,107830.0,0.04693638]
[1761837605267,0.0645,107840.0,107830.0,0.37001638]
[1761837605465,0.4253,107840.0,107830.0,0.04693638]
[1761837605666,0.4253,107840.0,107830.0,0.36997638]
[1761837605964,0.0645,107840.0,107830.0,0.36997638]
[1761837606170,0.4253,107840.0,107830.0,0.36997638]
[1761837606468,0.0645,107840.0,107830.0,0.36997638]
[1761837606773,0.0645,107840.0,107830.0,0.37001638]
[1761837606974,0.0445,107840.0,107830.0,0.37001638]
[1761837607370,0.02287,107840.0,107830.0,0.37001638]
[1761837607673,0.02287,107840.0,107830.0,0.73081638]
[1761837607674,0.001,107840.0,107830.0,0.73081638]
[1761837608473,0.001,107840.0,107830.0,1.42635828]
[1761837608677,0.001,107840.0,107830.0,1.48970987]
[1761837608874,0.001,107840.0,107830.0,1.49250987]
[1761837609069,1.08918512,107870.0,107860.0,0.04318]
[1761837609267,0.47077512,107870.0,107860.0,0.05629]
[1761837609465,0.83157512,107870.0,107860.0,0.05629]
[1761837609665,0.81157512,107870.0,107860.0,0.05629]
[1761837610070,0.40538512,107870.0,107860.0,0.06541119]
[1761837610272,0.004,107870.0,107860.0,0.08929]
[1761837610472,0.004,107870.0,107860.0,0.45009]
[1761837611876,0.004,107870.0,107860.0,0.42909]
[1761837612076,0.81157512,107880.0,107870.0,0.04318]
[1761837612379,1.00253493,107880.0,107870.0,0.3665]
[1761837612574,1.00253493,107880.0,107870.0,0.04318]
[1761837612771,0.02421,107870.0,107860.0,0.06747]
[1761837612972,0.45277512,107870.0,107860.0,0.41253]
[1761837613372,0.45277512,107870.0,107860.0,0.40053]
[1761837613571,0.47077512,107870.0,107860.0,0.36642]
[1761837613773,0.47077512,107870.0,107860.0,0.36638]
[1761837613969,0.47077512,107870.0,107860.0,0.37949]
[1761837614880,0.47077512,107870.0,107860.0,0.36638]
[1761837615181,0.47177512,107870.0,107860.0,0.36634]
[1761837615380,1.09657512,107870.0,107860.0,0.001]
[1761837615981,1.69657512,107870.0,107860.0,0.001]
[1761837616379,1.41969512,107870.0,107860.0,0.001]
[1761837616581,0.02245,107840.0,107830.0,0.45031797]